fUSD/lending_fUSD_20250616
["ID","MTS","AMOUNT","RATE_DAILY","PERIOD"]
[366056812,1750038645820,-523.35584212,0.00016438,2]
[366056813,1750038645830,-491.61805105,0.00016438,2]
[366056814,1750038645839,-493.50828605,0.00016438,2]
[366056815,1750038645849,-1757.21,0.00016438,2]
[366056816,1750038645859,-499.65872488,0.00016438,2]
[366056817,1750038645869,-495.34642172,0.00016438,2]
[366056818,1750038645878,-492.73802648,0.00016438,2]
[366056819,1750038645889,-490.77245717,0.00016438,2]
[366056820,1750038645898,-490.0,0.00016438,2]
[366056821,1750038645908,-497.12236318,0.00016438,2]
[366056822,1750038645918,-497.10639667,0.00016438,2]
[366056823,1750038645927,-1064.97,0.00016438,2]
[366056824,1750038645937,-490.0,0.00016438,2]
[366056825,1750038645946,-490.0,0.00016438,2]
[366056826,1750038645956,-490.0,0.00016438,2]
[366056827,1750038645966,-873.96,0.00016438,2]
[366056828,1750038645976,-490.0,0.00016438,2]
[366056829,1750038645987,-2070.26,0.00016438,2]
[366056830,1750038645998,-3217.98,0.00016438,2]
[366056831,1750038646009,-490.0,0.00016438,2]
[366056832,1750038646019,-3027.42,0.00016438,2]
[366056833,1750038646028,-532.63,0.00016438,2]
[366056834,1750038646038,-2116.77,0.00016438,2]
[366056835,1750038646047,-491.95029201,0.00016438,2]
[366056836,1750038646056,-1957.76,0.00016438,2]
[366056837,1750038646066,-824.89,0.00016438,2]
[366056838,1750038646075,-491.2506183,0.00016438,2]
[366056839,1750038646084,-494.88662358,0.00016438,2]
[366056840,1750038646094,-490.0,0.00016438,2]
[366056841,1750038646103,-490.0,0.00016438,2]
[366056842,1750038646113,-490.0,0.00016438,2]
[366056843,1750038646123,-495.18159467,0.00016438,2]
[366056844,1750038646132,-465.50969884,0.00016438,2]
[366056845,1750038646141,-490.0,0.00016438,2]
[366056846,1750038646151,-310.58384037,0.00016438,2]
[366056847,1750038646160,-501.83223207,0.00016438,2]
[366056848,1750038646170,-2683.35,0.00016438,2]
[366056849,1750038646179,-490.0,0.00016438,2]
[366056850,1750038646192,-490.0,0.00016438,2]
[366056851,1750038646202,-490.0,0.00016438,2]
[366056852,1750038646212,-742.66,0.00016438,2]
[366056853,1750038646221,-3330.46,0.00016438,2]
[366056854,1750038646231,-1296.44,0.00016438,2]
[366056855,1750038646240,-963.73,0.00016438,2]
[366056856,1750038646253,-490.0,0.00016438,2]
[366056857,1750038646262,-1142.68,0.00016438,2]
[366056858,1750038646274,-1646.97,0.00016438,2]
[366056859,1750038646284,-9445.46,0.00016438,2]
[366056860,1750038646293,-491.57658747,0.00016438,2]
[366056861,1750038646303,-490.0,0.00016438,2]
[366056862,1750038646312,-700.25,0.00016438,2]
[366056863,1750038646321,-494.05734832,0.00016438,2]
[366056864,1750038646331,-4835.82,0.00016438,2]
[366056865,1750038646340,-490.0,0.00016438,2]
[366056866,1750038646352,-490.0,0.00016438,2]
[366056867,1750038646362,-494.94945705,0.00016438,2]
[366056868,1750038646371,-7670.35,0.00016438,2]
[366056869,1750038646381,-490.0,0.00016438,2]
[366056870,1750038646391,-652.56,0.00016438,2]
[366056871,1750038646400,-2557.13,0.00016438,2]
[366056872,1750038646409,-2013.33,0.00016438,2]
[366056873,1750038646419,-500.69116406,0.00016438,2]
[366056874,1750038646429,-1692.98,0.00016438,2]
[366056875,1750038646438,-495.3365194,0.00016438,2]
[366056876,1750038646448,-494.61595101,0.00016438,2]
[366056877,1750038646457,-495.31920549,0.00016438,2]
[366056878,1750038646467,-728.29,0.00016438,2]
[366056879,1750038646476,-1136.29,0.00016438,2]
[366056880,1750038646486,-490.0,0.00016438,2]
[366056881,1750038646495,-658.96,0.00016438,2]
[366056882,1750038646507,-1952.57,0.00016438,2]
[366056883,1750038646517,-495.01054497,0.00016438,2]
[366056884,1750038646527,-490.0,0.00016438,2]
[366056885,1750038646537,-509.8280757,0.00016438,2]
[366056886,1750038646546,-300.0,0.00016438,2]
[366056887,1750038646556,-1657.47,0.00016438,2]
[366056888,1750038646566,-3534.99,0.00016438,2]
[366056889,1750038646576,-526.84,0.00016438,2]
[366056890,1750038646585,-493.90084689,0.00016438,2]
[366056891,1750038646595,-1241.56,0.00016438,2]
[366056892,1750038646604,-679.31,0.00016438,2]
[366056893,1750038646614,-511.89,0.00016438,2]
[366056894,1750038646624,-490.0,0.00016438,2]
[366056895,1750038646633,-2617.44,0.00016438,2]
[366056896,1750038646643,-490.0,0.00016438,2]
[366056897,1750038646653,-2018.04,0.00016438,2]
[366056898,1750038646663,-624.57,0.00016438,2]
[366056899,1750038646673,-512.15,0.00016438,2]
[366056900,1750038646683,-490.0,0.00016438,2]
[366056901,1750038646693,-490.0,0.00016438,2]
[366056902,1750038646703,-1234.14,0.00016438,2]
[366056903,1750038646712,-496.89848341,0.00016438,2]
[366056904,1750038646722,-2663.77,0.00016438,2]
[366056905,1750038646732,-1172.88,0.00016438,2]
[366056906,1750038646742,-1210.13,0.00016438,2]
[366056907,1750038646753,-490.0,0.00016438,2]
[366056908,1750038646763,-1572.26,0.00016438,2]
[366056909,1750038646772,-490.0,0.00016438,2]
[366056910,1750038646782,-633.56,0.00016438,2]
[366056911,1750038646792,-493.81312175,0.00016438,2]
[366056912,1750038646801,-490.0,0.00016438,2]
[366056913,1750038646811,-1263.06,0.00016438,2]
[366056914,1750038646820,-555.31,0.00016438,2]
[366056915,1750038646830,-10351.23,0.00016438,2]
[366056916,1750038646839,-928.94,0.00016438,2]
[366056917,1750038646848,-2923.65,0.00016438,2]
[366056918,1750038646859,-492.95505936,0.00016438,2]
[366056919,1750038646869,-490.0,0.00016438,2]
[366056920,1750038646879,-7434.66,0.00016438,2]
[366056921,1750038646888,-494.14761782,0.00016438,2]
[366056922,1750038646898,-490.0,0.00016438,2]
[366056923,1750038646907,-495.45223218,0.00016438,2]
[366056924,1750038646916,-490.0,0.00016438,2]
[366056925,1750038646926,-1509.34,0.00016438,2]
[366056926,1750038646936,-490.0,0.00016438,2]
[366056927,1750038646945,-662.36,0.00016438,2]
[366056928,1750038646955,-690.29,0.00016438,2]
[366056929,1750038646964,-2041.82,0.00016438,2]
[366056930,1750038646974,-503.02469441,0.00016438,2]
[366056931,1750038646983,-1686.76,0.00016438,2]
[366056932,1750038646992,-8009.3,0.00016438,2]
[366056933,1750038647003,-3973.73,0.00016438,2]
[366056934,1750038647012,-499.52003681,0.00016438,2]
[366056935,1750038647023,-4830.72,0.00016438,2]
[366056936,1750038647032,-490.0,0.00016438,2]
[366056937,1750038647041,-1590.53,0.00016438,2]
[366056938,1750038647051,-493.60345217,0.00016438,2]
[366056939,1750038647061,-492.96471602,0.00016438,2]
[366056940,1750038647071,-495.2453728,0.00016438,2]
[366056941,1750038647080,-490.0,0.00016438,2]
[366056942,1750038647090,-659.39,0.00016438,2]
[366056943,1750038647099,-490.0,0.00016438,2]
[366056944,1750038647109,-492.78185885,0.00016438,2]
[366056945,1750038647120,-495.05575604,0.00016438,2]
[366056946,1750038647130,-2546.61,0.00016438,2]
[366056947,1750038647140,-500.0,0.00016438,2]
[366056948,1750038647150,-397.81115585,0.00016438,2]
[366056949,1750038647159,-500.0,0.00016438,2]
[366056950,1750038647169,-3017.17,0.00016438,2]
[366056951,1750038647180,-2441.84,0.00016438,2]
[366056952,1750038647192,-500.0,0.00016438,2]
[366056953,1750038647202,-500.0,0.00016438,2]
[366056954,1750038647211,-627.41,0.00016438,2]
[366056955,1750038647221,-882.89,0.00016438,2]
[366056956,1750038647231,-466.07498801,0.00016438,2]
[366056957,1750038647243,-490.0,0.00016438,2]
[366056958,1750038647257,-494.81690619,0.00016438,2]
[366056959,1750038647268,-490.0,0.00016438,2]
[366056960,1750038647278,-490.0,0.00016438,2]
[366056961,1750038647288,-496.31897407,0.00016438,2]
[366056962,1750038647299,-1700.96,0.00016438,2]
[366056963,1750038647308,-490.0,0.00016438,2]
[366056964,1750038647318,-492.16473205,0.00016438,2]
[366056965,1750038647328,-493.00339608,0.00016438,2]
[366056966,1750038647337,-5151.77,0.00016438,2]
[366056967,1750038647347,-4230.88,0.00016438,2]
[366056968,1750038647357,-490.0,0.00016438,2]
[366056969,1750038647367,-1493.47,0.00016438,2]
[366056970,1750038647377,-490.0,0.00016438,2]
[366056971,1750038647387,-490.0,0.00016438,2]
[366056972,1750038647397,-490.0,0.00016438,2]
[366056973,1750038647406,-1576.47,0.00016438,2]
[366056974,1750038647416,-1624.64,0.00016438,2]
[366056975,1750038647426,-1366.91,0.00016438,2]
[366056976,1750038647436,-490.0,0.00016438,2]
[366056977,1750038647446,-490.0,0.00016438,2]
[366056978,1750038647456,-2304.22,0.00016438,2]
[366056979,1750038647465,-494.30476549,0.00016438,2]
[366056980,1750038647474,-1033.85,0.00016438,2]
[366056981,1750038647485,-1413.34,0.00016438,2]
[366056982,1750038647494,-778.56,0.00016438,2]
[366056983,1750038647506,-490.0,0.00016438,2]
[366056984,1750038647516,-603.81324061,0.00016438,2]
[366056985,1750038647526,-490.0,0.00016438,2]
[366056986,1750038647536,-628.33,0.00016438,2]
[366056987,1750038647546,-495.71595598,0.00016438,2]
[366056988,1750038647556,-490.07,0.00016438,2]
[366056989,1750038647566,-490.0,0.00016438,2]
[366056990,1750038647576,-490.0,0.00016438,2]
[366056991,1750038647585,-490.0,0.00016438,2]
[366056992,1750038647594,-490.0,0.00016438,2]
[366056993,1750038647605,-774.62,0.00016438,2]
[366056994,1750038647615,-918.32,0.00016438,2]
[366056995,1750038647625,-490.0,0.00016438,2]
[366056996,1750038647634,-492.16599123,0.00016438,2]
[366056997,1750038647645,-1325.09,0.00016438,2]
[366056998,1750038647655,-938.37,0.00016438,2]
[366056999,1750038647664,-490.0,0.00016438,2]
[366057000,1750038647675,-514.74,0.00016438,2]
[366057001,1750038647684,-2528.15,0.00016438,2]
[366057002,1750038647694,-1802.97,0.00016438,2]
[366057003,1750038647704,-500.0,0.00016438,2]
[366057004,1750038647713,-1072.78,0.00016438,2]
[366057005,1750038647723,-500.0,0.00016438,2]
[366057006,1750038647733,-500.0,0.00016438,2]
[366057007,1750038647743,-500.0,0.00016438,2]
[366057008,1750038647754,-5803.43,0.00016438,2]
[366057009,1750038647764,-490.0,0.00016438,2]
[366057010,1750038647773,-490.0,0.00016438,2]
[366057011,1750038647783,-1052.18,0.00016438,2]
[366057012,1750038647793,-490.0,0.00016438,2]
[366057013,1750038647803,-939.84,0.00016438,2]
[366057014,1750038647812,-490.0,0.00016438,2]
[366057015,1750038647822,-1246.31,0.00016438,2]
[366057016,1750038647832,-2974.88,0.00016438,2]
[366057017,1750038647841,-568.16,0.00016438,2]
[366057018,1750038647851,-490.0,0.00016438,2]
[366057019,1750038647860,-1539.6,0.00016438,2]
[366057020,1750038647870,-2008.98,0.00016438,2]
[366057021,1750038647879,-1809.3,0.00016438,2]
[366057022,1750038647888,-530.50467146,0.00016438,2]
[366057023,1750038647898,-490.0,0.00016438,2]
[366057024,1750038647908,-26766.4,0.00016438,2]
[366057025,1750038647917,-490.0,0.00016438,2]
[366057026,1750038647927,-503.49618835,0.00016438,2]
[366057027,1750038647936,-1865.17,0.00016438,2]
[366057028,1750038647945,-499.03835969,0.00016438,2]
[366057029,1750038647955,-490.42353218,0.00016438,2]
[366057030,1750038647964,-2096.8,0.00016438,2]
[366057031,1750038647973,-525.21,0.00016438,2]
[366057032,1750038647983,-571.13,0.00016438,2]
[366057033,1750038648121,-2149.07,0.00016438,2]
[366057034,1750038648131,-720.36,0.00016438,2]
[366057035,1750038648140,-1997.98,0.00016438,2]
[366057036,1750038648150,-497.77326576,0.00016438,2]
[366057037,1750038648159,-649.86,0.00016438,2]
[366057038,1750038648168,-490.0,0.00016438,2]
[366057039,1750038648178,-959.45,0.00016438,2]
[366057040,1750038648188,-493.49968535,0.00016438,2]
[366057041,1750038648204,-1448.13,0.00016438,2]
[366057042,1750038648214,-502.46,0.00016438,2]
[366057043,1750038648223,-1142.03,0.00016438,2]
[366057044,1750038648233,-1439.15,0.00016438,2]
[366057045,1750038648243,-490.0,0.00016438,2]
[366057046,1750038648254,-11317.66,0.00016438,2]
[366057047,1750038648263,-490.0,0.00016438,2]
[366057048,1750038648275,-490.0,0.00016438,2]
[366057049,1750038648286,-1878.74,0.00016438,2]
[366057050,1750038648295,-483.2988675,0.00016438,2]
[366057051,1750038648304,-498.28703104,0.00016438,2]
[366057052,1750038648313,-1743.14,0.00016438,2]
[366057053,1750038648322,-493.90183705,0.00016438,2]
[366057054,1750038648332,-490.0,0.00016438,2]
[366057055,1750038648341,-836.33,0.00016438,2]
[366057056,1750038648351,-491.31089225,0.00016438,2]
[366057057,1750038648361,-490.0,0.00016438,2]
[366057058,1750038648370,-490.0,0.00016438,2]
[366057059,1750038648379,-490.0,0.00016438,2]
[366057060,1750038648389,-1092.4,0.00016438,2]
[366057061,1750038648398,-3635.15,0.00016438,2]
[366057062,1750038648407,-684.79,0.00016438,2]
[366057063,1750038648417,-4942.28,0.00016438,2]
[366057064,1750038648426,-1011.93,0.00016438,2]
[366057065,1750038648435,-2609.3,0.00016438,2]
[366057066,1750038648445,-1327.4,0.00016438,2]
[366057067,1750038648454,-527.19,0.00016438,2]
[366057068,1750038648464,-4002.54,0.00016438,2]
[366057069,1750038648473,-267.90523209,0.00016438,2]
[366057070,1750038648483,-1177.42,0.00016438,2]
[366057071,1750038648493,-7965.61,0.00016438,2]
[366057072,1750038648504,-471.39306888,0.00016438,2]
[366057073,1750038648513,-180.10837505,0.00016438,2]
[366057074,1750038648522,-493.18532235,0.00016438,2]
[366057075,1750038648532,-826.38,0.00016438,2]
[366057076,1750038648542,-2299.55,0.00016438,2]
[366057077,1750038648552,-643.31,0.00016438,2]
[366057078,1750038648562,-923.12,0.00016438,2]
[366057079,1750038648571,-1512.18,0.00016438,2]
[366057080,1750038648580,-315.72082884,0.00016438,2]
[366057081,1750038648590,-494.25058959,0.00016438,2]
[366057082,1750038648600,-490.0,0.00016438,2]
[366057083,1750038648610,-490.0,0.00016438,2]
[366057084,1750038648620,-492.35178912,0.00016438,2]
[366057085,1750038648629,-2782.61,0.00016438,2]
[366057086,1750038648639,-1325.33,0.00016438,2]
[366057087,1750038648648,-536.0787695,0.00016438,2]
[366057088,1750038648658,-508.148952,0.00016438,2]
[366057089,1750038648667,-1559.63,0.00016438,2]
[366057090,1750038648677,-490.0,0.00016438,2]
[366057091,1750038648687,-496.34203918,0.00016438,2]
[366057092,1750038648698,-490.0,0.00016438,2]
[366057093,1750038648708,-1382.5,0.00016438,2]
[366057094,1750038648718,-2523.4,0.00016438,2]
[366057095,1750038648727,-496.24964688,0.00016438,2]
[366057096,1750038648737,-3729.95,0.00016438,2]
[366057097,1750038648747,-495.81400295,0.00016438,2]
[366057098,1750038648757,-3439.64,0.00016438,2]
[366057099,1750038648767,-499.22674662,0.00016438,2]
[366057100,1750038648777,-8767.78,0.00016438,2]
[366057101,1750038648786,-496.53852849,0.00016438,2]
[366057102,1750038648796,-1601.83,0.00016438,2]
[366057103,1750038648805,-490.0,0.00016438,2]
[366057104,1750038648815,-490.0,0.00016438,2]
[366057105,1750038648824,-477.26711621,0.00016438,2]
[366057106,1750038648833,-1328.15,0.00016438,2]
[366057107,1750038648843,-3214.42,0.00016438,2]
[366057108,1750038648852,-810.18,0.00016438,2]
[366057109,1750038648862,-490.0,0.00016438,2]
[366057110,1750038648871,-1902.8,0.00016438,2]
[366057111,1750038648880,-490.0,0.00016438,2]
[366057112,1750038648890,-772.07,0.00016438,2]
[366057113,1750038648899,-1029.53,0.00016438,2]
[366057114,1750038648908,-1603.72,0.00016438,2]
[366057115,1750038648918,-1489.34,0.00016438,2]
[366057116,1750038648927,-629.79,0.00016438,2]
[366057117,1750038648937,-150.0,0.00016438,2]
[366057118,1750038648947,-1410.46,0.00016438,2]
[366057119,1750038648956,-490.0,0.00016438,2]
[366057120,1750038648966,-785.35,0.00016438,2]
[366057121,1750038648975,-2783.56,0.00016438,2]
[366057122,1750038648983,-1021.25,0.00016438,2]
[366057123,1750038648992,-490.0,0.00016438,2]
[366057124,1750038649002,-619.14,0.00016438,2]
[366057125,1750038649012,-490.0,0.00016438,2]
[366057126,1750038649021,-490.0,0.00016438,2]
[366057127,1750038649031,-533.79,0.00016438,2]
[366057128,1750038649040,-1235.72,0.00016438,2]
[366057129,1750038649049,-490.0,0.00016438,2]
[366057130,1750038649059,-571.12325883,0.00016438,2]
[366057131,1750038649068,-495.53328804,0.00016438,2]
[366057132,1750038649077,-790.0,0.00016438,2]
[366057133,1750038649086,-576.19,0.00016438,2]
[366057134,1750038649095,-576.19,0.00016438,2]
[366057135,1750038649105,-576.19,0.00016438,2]
[366057136,1750038649114,-490.0,0.00016438,2]
[366057137,1750038649124,-576.19,0.00016438,2]
[366057138,1750038649133,-558.75,0.00016438,2]
[366057139,1750038649143,-490.0,0.00016438,2]
[366057140,1750038649152,-490.0,0.00016438,2]
[366057141,1750038649162,-931.68,0.00016438,2]
[366057142,1750038649171,-23128.68,0.00016438,2]
[366057143,1750038649181,-1562.84,0.00016438,2]
[366057144,1750038649193,-199.54515643,0.00016438,2]
[366057145,1750038649202,-160.020771,0.00016438,2]
[366057146,1750038649212,-1153.99,0.00016438,2]
[366057147,1750038649222,-509.01,0.00016438,2]
[366057148,1750038649232,-1170.03,0.00016438,2]
[366057149,1750038649242,-498.36594803,0.00016438,2]
[366057150,1750038649252,-2170.0,0.00016438,2]
[366057151,1750038649262,-490.0,0.00016438,2]
[366057152,1750038649273,-3839.95,0.00016438,2]
[366057153,1750038649282,-1069.74,0.00016438,2]
[366057154,1750038649292,-500.0,0.00016438,2]
[366057155,1750038649302,-500.0,0.00016438,2]
[366057156,1750038649311,-500.0,0.00016438,2]
[366057157,1750038649321,-509.45012815,0.00016438,2]
[366057158,1750038649331,-490.0,0.00016438,2]
[366057159,1750038649341,-490.0,0.00016438,2]
[366057160,1750038649350,-490.0,0.00016438,2]
[366057161,1750038649359,-8835.96,0.00016438,2]
[366057162,1750038649369,-490.0,0.00016438,2]
[366057163,1750038649378,-495.85922865,0.00016438,2]
[366057164,1750038649388,-500.0,0.00016438,2]
[366057165,1750038649398,-500.0,0.00016438,2]
[366057166,1750038649408,-490.0,0.00016438,2]
[366057167,1750038649417,-500.0,0.00016438,2]
[366057168,1750038649427,-500.0,0.00016438,2]
[366057169,1750038649436,-490.0,0.00016438,2]
[366057170,1750038649446,-25081.05,0.00016438,2]
[366057171,1750038649455,-490.0,0.00016438,2]
[366057172,1750038649464,-4053.41,0.00016438,2]
[366057173,1750038649474,-490.0,0.00016438,2]
[366057174,1750038649483,-1381.19,0.00016438,2]
[366057175,1750038649493,-2339.91,0.00016438,2]
[366057176,1750038649503,-490.0,0.00016438,2]
[366057177,1750038649513,-1065.17,0.00016438,2]
[366057178,1750038649523,-1744.28,0.00016438,2]
[366057179,1750038649533,-19118.0,0.00016438,2]
[366057180,1750038649544,-801.13,0.00016438,2]
[366057181,1750038649553,-490.92011645,0.00016438,2]
[366057182,1750038649564,-493.89243088,0.00016438,2]
[366057183,1750038649574,-1775.72,0.00016438,2]
[366057184,1750038649583,-564.08,0.00016438,2]
[366057185,1750038649594,-521.86,0.00016438,2]
[366057186,1750038649604,-496.23969559,0.00016438,2]
[366057187,1750038649616,-1483.91,0.00016438,2]
[366057188,1750038649625,-490.0,0.00016438,2]
[366057189,1750038649635,-498.02674008,0.00016438,2]
[366057190,1750038649644,-491.99752988,0.00016438,2]
[366057191,1750038649654,-445.16130508,0.00016438,2]
[366057192,1750038649663,-1069.16,0.00016438,2]
[366057193,1750038649673,-1384.25,0.00016438,2]
[366057194,1750038649683,-491.3710231,0.00016438,2]
[366057195,1750038649692,-490.0,0.00016438,2]
[366057196,1750038649701,-3312.29,0.00016438,2]
[366057197,1750038649711,-6296.55,0.00016438,2]
[366057198,1750038649720,-4709.32,0.00016438,2]
[366057199,1750038649730,-490.0,0.00016438,2]
[366057200,1750038649739,-712.25,0.00016438,2]
[366057201,1750038649748,-638.37,0.00016438,2]
[366057202,1750038649757,-1012.09953117,0.00016438,2]
[366057203,1750038649767,-1560.25,0.00016438,2]
[366057204,1750038649776,-490.0,0.00016438,2]
[366057205,1750038649784,-490.0,0.00016438,2]
[366057206,1750038649793,-746.88,0.00016438,2]
[366057207,1750038649803,-1590.94,0.00016438,2]
[366057208,1750038649812,-634.79,0.00016438,2]
[366057209,1750038649821,-1912.8,0.00016438,2]
[366057210,1750038649830,-546.33,0.00016438,2]
[366057211,1750038649839,-965.72,0.00016438,2]
[366057212,1750038649848,-2056.67,0.00016438,2]
[366057213,1750038649858,-504.43675865,0.00016438,2]
[366057214,1750038649868,-1681.35,0.00016438,2]
[366057215,1750038649877,-4234.75,0.00016438,2]
[366057216,1750038649887,-157.163161,0.00016438,2]
[366057217,1750038649896,-490.0,0.00016438,2]
[366057218,1750038649905,-1091.58,0.00016438,2]
[366057219,1750038649915,-18876.97,0.00016438,2]
[366057220,1750038649924,-1856.05,0.00016438,2]
[366057221,1750038649934,-496.37695765,0.00016438,2]
[366057222,1750038649943,-1408.77,0.00016438,2]
[366057223,1750038649953,-490.0,0.00016438,2]
[366057224,1750038649962,-491.53352089,0.00016438,2]
[366057225,1750038649971,-490.0,0.00016438,2]
[366057226,1750038649981,-490.0,0.00016438,2]
[366057227,1750038649990,-490.0,0.00016438,2]
[366057228,1750038649999,-490.67812381,0.00016438,2]
[366057229,1750038650009,-526.89,0.00016438,2]
[366057230,1750038650018,-490.0,0.00016438,2]
[366057231,1750038650026,-894.96,0.00016438,2]
[366057232,1750038650035,-1546.38,0.00016438,2]
[366057233,1750038650044,-493.24719607,0.00016438,2]
[366057234,1750038650054,-2084.07,0.00016438,2]
[366057235,1750038650063,-2404.0,0.00016438,2]
[366057236,1750038650072,-1139.77,0.00016438,2]
[366057237,1750038650082,-492.96404145,0.00016438,2]
[366057238,1750038650091,-4782.9,0.00016438,2]
[366057239,1750038650100,-490.0,0.00016438,2]
[366057240,1750038650109,-490.0,0.00016438,2]
[366057241,1750038650118,-490.0,0.00016438,2]
[366057242,1750038650127,-496.76247948,0.00016438,2]
[366057243,1750038650137,-882.4,0.00016438,2]
[366057244,1750038650146,-490.0,0.00016438,2]
[366057245,1750038650155,-1828.92,0.00016438,2]
[366057246,1750038650164,-491.05134449,0.00016438,2]
[366057247,1750038650173,-494.50744166,0.00016438,2]
[366057248,1750038650183,-490.0,0.00016438,2]
[366057249,1750038650194,-1335.43,0.00016438,2]
[366057250,1750038650203,-491.16269266,0.00016438,2]
[366057251,1750038650212,-490.0,0.00016438,2]
[366057252,1750038650221,-500.0,0.00016438,2]
[366057253,1750038650230,-498.65,0.00016438,2]
[366057254,1750038650241,-503.79,0.00016438,2]
[366057255,1750038650250,-305.47,0.00016438,2]
[366057256,1750038650260,-178.11763002,0.00016448,2]
[366057257,1750038650271,-218.5015807,0.00016448,2]
[366057258,1750038650280,-500.0,0.00016468,2]
[366057259,1750038650290,-500.0,0.00016469,2]
[366057260,1750038650299,-500.0,0.00016469,2]
[366057261,1750038650308,-218.5015807,0.00016484,2]
[366057262,1750038650317,-833.72177943,0.00016486,2]
[366057263,1750038650327,-2183.31810187,0.00016492,2]
[366057264,1750038650335,-551.01796981,0.00016499,2]
[366057265,1750038650345,-490.89986222,0.00016499,2]
[366057266,1750038650358,-491.43154308,0.00016499,2]
[366057267,1750038650369,-583.0,0.000165,2]
[366057268,1750038650379,-50909.60698218,0.000165,2]
[366057269,1750038650390,-2065.31,0.000165,2]
[366057270,1750038650400,-171.53802372,0.00016502,2]
[366057271,1750038650410,-3982.02681534,0.00016502,2]
[366057272,1750038650421,-155.45440738,0.00016502,2]
[366057273,1750038650432,-218.5015807,0.00016521,2]
[366057274,1750038650442,-2398.581,0.00016525,2]
[366057275,1750038650455,-2264.10087164,0.00016547,2]
[366057276,1750038650466,-178.11763002,0.00016557,2]
[366057277,1750038650477,-218.5015807,0.00016557,2]
[366057278,1750038650488,-497.31177758,0.00016573,2]
[366057279,1750038650498,-500.0,0.00016575,2]
[366057280,1750038650518,-150.51384359,0.00016575,2]
[366057281,1750038650528,-150.0,0.00016575,2]
[366057282,1750038650539,-500.0,0.00016575,2]
[366057283,1750038650549,-150.0,0.00016575,2]
[366057284,1750038650561,-500.0,0.00016575,2]
[366057285,1750038650571,-151.38769419,0.00016575,2]
[366057286,1750038650582,-150.0,0.00016575,2]
[366057287,1750038650592,-150.0,0.00016575,2]
[366057288,1750038650602,-150.0,0.00016575,2]
[366057289,1750038650612,-152.09023855,0.00016575,2]
[366057290,1750038650622,-151.90142956,0.00016575,2]
[366057291,1750038650632,-500.0,0.00016575,2]
[366057292,1750038650642,-150.0,0.00016575,2]
[366057293,1750038650653,-257.94950102,0.00016575,2]
[366057294,1750038650663,-500.0,0.00016575,2]
[366057295,1750038650673,-150.0,0.00016575,2]
[366057296,1750038650683,-152.912258,0.00016575,2]
[366057297,1750038650694,-150.77357222,0.00016575,2]
[366057298,1750038650704,-150.79319771,0.00016575,2]
[366057299,1750038650714,-500.0,0.00016575,2]
[366057300,1750038650725,-150.70025555,0.00016575,2]
[366057301,1750038650735,-150.0,0.00016575,2]
[366057302,1750038650744,-156.89620895,0.00016575,2]
[366057303,1750038650760,-500.0,0.00016575,2]
[366057304,1750038650770,-160.43696456,0.00016575,2]
[366057305,1750038650781,-153.57249615,0.00016575,2]
[366057306,1750038650790,-500.0,0.00016575,2]
[366057307,1750038650800,-455.03,0.00016575,2]
[366057308,1750038650809,-319668.8129304,0.00016585,2]
[366057309,1750038651441,-580.26637846,0.00016438,2]
[366057310,1750038651451,-4874.76127763,0.00016585,2]
[366057311,1750038651462,-1293.16940294,0.00016585,2]